Cogmind - Beta 14 @@@ ROGUE MODE // 2024.09.22 @ 13:39:25 Player: Kinga Result: Destroyed by Autobeam Turret with Autobeam Performance ------------- Evolutions (0) 0 Regions Visited (4) 800 Robots Destroyed (38) 190 Value Destroyed (972) 972 Prototype IDs (2) 40 Alien Tech Used (0) 0 Bonus (300) 300 TOTAL SCORE: 2302 Bonus ------- Registered with UFD 300 Cogmind --------- Core Integrity 0/250 Matter 296/300 Energy 96/100 System Corruption 0% Temperature Cool (8) Movement Treading (240) Ox1 Location -9/Scraptown Parts ------- > --- POWER (1) -------- (None) > --- PROPULSION (2) --- Light Treads Light Treads > --- UTILITY (2) ------ High-capacity Storage Unit Core Shielding > --- WEAPON (2) ------- Subdweller Beam Cannon Shotgun > --- INVENTORY (20) --- Compact Wheel Subdweller Monowheel Subdweller Monowheel Advanced Targeting Computer Improved Hacking Suite Riot Gun Arc Thrower Small Laser Gatling Laser Beam Cannon Subdweller Beam Cannon Light Assault Rifle Light Assault Rifle Flak Gun Flak Gun Battle Cannon Grenade Launcher Long-range Missile Launcher PL-3XN's Ring of Power Peak State ------------ > --- POWER ------------ Subdweller Power Source > --- PROPULSION ------- Light Treads Light Treads > --- UTILITY ---------- High-capacity Storage Unit Subdweller Optics > --- WEAPON ----------- Shotgun Shotgun > --- INVENTORY -------- Light Treads Compact Wheel Subdweller Monowheel Subdweller Monowheel Riot Gun Small Laser Beam Cannon Subdweller Beam Cannon Subdweller Beam Cannon Light Assault Rifle Light Assault Rifle Battle Cannon Grenade Launcher [Rating: 13] Favorites ----------- Power Ion Engine Engine Ion Engine Propulsion Light Treads Treads Light Treads Utility High-capacity Storage Unit Device Subdweller Optics Storage High-capacity Storage Unit Protection Core Shielding Weapon Shotgun Energy Gun Small Laser Energy Cannon Subdweller Beam Cannon Ballistic Gun Shotgun Build | -11 -10 -10 -9 -9 ------- Run | Yrd Mat Sub Rec Scr Slots Evolved . | . . . . . Power . | . . . . . Propulsion . | . . . . . Utility . | . . . . . Weapon . | . . . . . Parts Attached 29 | 6 9 8 6 . Power 3 | 1 . 2 . . Engine 3 | 1 . 2 . . Core . | . . . . . Reactor . | . . . . . Propulsion 9 | 2 2 2 3 . Treads 9 | 2 2 2 3 . Leg . | . . . . . Wheel . | . . . . . Hover . | . . . . . Flight . | . . . . . Utility 9 | 1 4 2 2 . Device 2 | . 1 . 1 . Storage 2 | 1 1 . . . Processor . | . . . . . Hackware . | . . . . . Protection 5 | . 2 2 1 . Artifact . | . . . . . Weapon 8 | 2 3 2 1 . Energy Gun 2 | 2 . . . . Energy Cannon 1 | . . . 1 . Ballistic Gun 5 | . 3 2 . . Ballistic Cannon . | . . . . . Launcher . | . . . . . Special Weapon . | . . . . . Impact Weapon . | . . . . . Slashing Weapon . | . . . . . Piercing Weapon . | . . . . . Special Melee Weapon . | . . . . . Unidentified Prototypes . | . . . . . Parts Lost 14 | . 1 8 5 . Power 2 | . . 2 . . Propulsion 5 | . . 2 3 . Utility 3 | . . 2 1 . Weapon 4 | . 1 2 1 . Highest Loss Streak 4 | . 1 4 2 . To Critical Strikes . | . . . . . Average Slot Usage (%) 89 | . 98 99 85 85 Engine 5 | . 14 13 4 . Treads 27 | . 28 28 27 28 Storage 14 | . 14 14 14 14 Protection 12 | . 11 14 7 14 Energy Gun 3 | . 16 . . . Energy Cannon 7 | . . . 4 14 Ballistic Gun 17 | . 11 28 23 14 Peak Build Rating 13 | 6 10 12 13 13 Average Rating 9 | 4 7 10 9 10 On Entrance 7 | . 6 10 12 9 Naked Turns . | . . . . . Heaviest Build 54 | 13 54 54 54 52 Greatest Support 40 | 40 40 40 40 40 Greatest Overweight (x) 2 | . 1 1 2 1 Average Overweight (x) . | . . 1 1 1 Largest Inventory Capacity 20 | 8 20 20 20 20 Average Capacity 18 | 7 13 20 20 20 Most Carried 19 | 4 12 15 14 19 Average Carried 12 | 2 8 12 12 13 Final Capacity 20 | 8 20 20 20 20 Final Carried 19 | 4 12 12 11 19 Class Distribution -------------------- 100% | Mutant Dominant Class ---------------- Mutant | -10/Materials Mutant | -10/Subcaves Mutant | -9/Recycling Mutant | -9/Scraptown Resources | -11 -10 -10 -9 -9 ----------- Run | Yrd Mat Sub Rec Scr Matter Collected 995 | 224 144 340 287 . Remotely . | . . . . . Salvage Created 1150 | . 445 184 521 . Parts 67 | . 36 17 14 . Haulers Intercepted 1 | . 1 . . . Recyclers Shooed . | . . . . . Parts Field Recycled . | . . . . . Retrieved Matter . | . . . . . Parts Self-Destructed 14 | . . 14 . . Prevented . | . . . . . Kills | -11 -10 -10 -9 -9 ------- Run | Yrd Mat Sub Rec Scr Combat Hostiles Destroyed 29 | . 14 7 8 . Guns 29 | . 14 7 8 . Classes Destroyed 11 | . 5 2 4 . Worker 1 | . 1 . . . Hauler 1 | . 1 . . . Recycler 2 | . . . 2 . Turret 2 | . . 2 . . Watcher 3 | . 3 . . . Swarmer 13 | . 9 4 . . Grunt 6 | . 5 . 1 . Duelist 1 | . . . 1 . Sentry 5 | . . . 5 . Demolisher 1 | . . . 1 . Subdweller 3 | . . 3 . . Best Kill Streak 5 | . 5 4 4 . Combat Bots Only 5 | . 5 4 1 . Max Kills in Single Turn 2 | . 2 2 1 . Gunslinging 1 | . 1 1 . . Exploded . | . . . . . Melee . | . . . . . Uniques/NPCs Destroyed . | . . . . . Combat | -11 -10 -10 -9 -9 -------- Run | Yrd Mat Sub Rec Scr Hostile Shots Fired 252 | . 50 163 36 3 Missed 84 | . 15 61 7 1 Damage Taken 2216 | . 389 1242 559 26 Core 251 | . 63 93 87 8 Absorbed by Shields . | . . . . . Redirected to Shielding 1 | . . . . 1 Core Remaining (%) 100 | 100 . . . . Volleys Fired 105 | . 37 35 32 1 Largest 2 | . 2 2 2 2 Hottest 103 | . 80 46 103 103 Shots Fired 209 | . 73 70 64 2 Gun 207 | . 73 70 63 1 Cannon 2 | . . . 1 1 Launcher . | . . . . . Special . | . . . . . Kinetic 142 | . 8 70 63 1 Thermal 34 | . 32 . 1 1 Explosive . | . . . . . Electromagnetic 33 | . 33 . . . Robot Hit Streak 11 | . 6 11 9 . Robot Miss Streak 5 | . 5 2 5 . Penetration Max . | . . . . . Secondary Targets 5 | . 3 2 . . Max Gunslinging Chain 1 | . 1 1 . . Shots Hit Robots 152 | . 45 57 50 . Core Hits 66 | . 25 17 24 . Critical Kills . | . . . . . Critical Parts Destroyed 1 | . . . 1 . Critical Strikes 1 | . . . 1 . Destroy 1 | . . . 1 . Melee Attacks . | . . . . . Impact . | . . . . . Slashing . | . . . . . Piercing . | . . . . . Sneak Attacks . | . . . . . Combat Hostiles . | . . . . . Follow-up Attacks . | . . . . . Damage Inflicted 2380 | . 955 644 781 . Guns 1998 | . 573 644 781 . Cannons . | . . . . . Explosions 381 | . 381 . . . Melee . | . . . . . Ramming 1 | . 1 . . . Kinetic 1525 | . 100 644 781 . Thermal 591 | . 591 . . . Explosive . | . . . . . Electromagnetic 263 | . 263 . . . Impact . | . . . . . Slashing . | . . . . . Piercing . | . . . . . Highest Corruption . | . . . . . Average Corruption . | . . . . . Corruption Purged . | . . . . . Corruption Blocked . | . . . . . Overload Shots . | . . . . . Overflow Damage 193 | . 193 . . . Projectiles . | . . . . . Explosions 193 | . 193 . . . Melee . | . . . . . Knockbacks . | . . . . . Impact . | . . . . . Kinetic . | . . . . . Secondary . | . . . . . Self-Inflicted Damage 69 | . 69 . . . Shots 1 | . 1 . . . Rammed 2 | . 2 . . . Targets Rammed 2 | . 2 . . . Kicked . | . . . . . Crushed . | . . . . . Highest Temperature 198 | . 198 8 28 45 Average Temperature 42 | . 53 3 11 26 Received Heat Transfer 624 | . 78 384 138 24 Siege Activations . | . . . . . Robots Corrupted . | . . . . . Combat Hostiles . | . . . . . Parts Fried . | . . . . . Impact Corruptions . | . . . . . Robots Melted . | . . . . . Combat Hostiles . | . . . . . Parts Melted 2 | . 2 . . . Heat Transferred 725 | . 725 . . . Parts Sabotaged . | . . . . . Parts Stolen . | . . . . . Parts Stripped . | . . . . . Power Chain Reactions . | . . . . . Alert | -11 -10 -10 -9 -9 ------- Run | Yrd Mat Sub Rec Scr Peak Influence 329 | . 329 . 151 . Initial 9 | . . . 9 . Average 95 | . 177 . 29 . Maximum Alert Level 1 | . 1 . . . Low Security (%) 87 | 100 71 . 100 . Level 1 12 | . 28 . . . Level 2 . | . . . . . Level 3 . | . . . . . Level 4 . | . . . . . Level 5 . | . . . . . High Security . | . . . . . Max Security . | . . . . . Squads Dispatched 1 | . 1 . . . Investigation . | . . . . . Extermination . | . . . . . Reinforcement 1 | . 1 . . . Assault . | . . . . . Garrison . | . . . . . Intercept . | . . . . . Searches Triggered . | . . . . . Construction Impeded . | . . . . . Haulers Reinforced . | . . . . . Active Scanning Responses . | . . . . . Cargo Convoy Interrupts . | . . . . . Stealth | -11 -10 -10 -9 -9 --------- Run | Yrd Mat Sub Rec Scr Distress Signals 3 | . 3 . . . Communications Jammed . | . . . . . Distress Signals . | . . . . . Times Spotted 42 | . 22 10 9 1 Peak Tracking Total 6 | . 6 6 2 3 Tactical Retreats 3 | . . 2 1 . Traps | -11 -10 -10 -9 -9 ------- Run | Yrd Mat Sub Rec Scr Traps Triggered 5 | . . 5 . . Indirectly . | . . . . . Trap Hack Attempts . | . . . . . Triggered . | . . . . . Disarmed . | . . . . . Reprogrammed . | . . . . . Reused . | . . . . . Traps Extracted . | . . . . . Installed . | . . . . . Triggered . | . . . . . Machines | -11 -10 -10 -9 -9 ---------- Run | Yrd Mat Sub Rec Scr Machines Disabled 8 | . 7 . . 1 Max in Single Turn 4 | . 4 . . 1 Machines Repaired . | . . . . . Machines Dismantled . | . . . . . Machines Sabotaged . | . . . . . Overloaded Fab Kills . | . . . . . Hacking | -11 -10 -10 -9 -9 --------- Run | Yrd Mat Sub Rec Scr Machines Accessed 15 | . 1 . 6 8 Terminals 5 | . 1 . 4 . Fabricators . | . . . . . Repair Stations . | . . . . . Recycling Units . | . . . . . Scanalyzers . | . . . . . Garrison Access . | . . . . . Total Hacks 83 | . 1 . 36 46 Successful 76 | . 1 . 29 46 Failed 7 | . . . 7 . Catastrophic 1 | . . . 1 . Database Lockouts . | . . . . . Manual . | . . . . . Terminals 12 | . 1 . 11 . Fabricators . | . . . . . Repair Stations . | . . . . . Recycling Units . | . . . . . Scanalyzers . | . . . . . Garrison Access . | . . . . . Terminal Hacks 76 | . 1 . 29 46 Record 70 | . . . 24 46 Prototype ID Bank 1 | . . . 1 . Branch Access Points 1 | . . . 1 . Zone Layout 3 | . 1 . 2 . Release Object 1 | . . . 1 . Fabricator Hacks . | . . . . . Repair Station Hacks . | . . . . . Recycling Unit Hacks . | . . . . . Scanalyzer . | . . . . . Garrison Access Hacks . | . . . . . Unauthorized Hacks . | . . . . . Terminals . | . . . . . Fabricators . | . . . . . Repair Stations . | . . . . . Recycling Units . | . . . . . Scanalyzers . | . . . . . Garrison Access . | . . . . . Data Cores Recovered . | . . . . . Used . | . . . . . Hacking Detections 4 | . . . 4 . Full Trace Events . | . . . . . Feedback Events . | . . . . . Feedback Blocked . | . . . . . Robot Schematics Acquired . | . . . . . Robots Built . | . . . . . Authchips . | . . . . . Time . | . . . . . Total Robot Build Rating . | . . . . . Part Schematics Acquired . | . . . . . Parts Built . | . . . . . Authchips . | . . . . . Time . | . . . . . Total Part Build Rating . | . . . . . Parts Repaired . | . . . . . Time . | . . . . . Parts Recycled . | . . . . . Recycled Matter . | . . . . . Retrieved Matter . | . . . . . Retrieved Components . | . . . . . Parts Scanalyzed . | . . . . . Part Schematics Acquired . | . . . . . Parts Damaged . | . . . . . Bothacking | -11 -10 -10 -9 -9 ------------ Run | Yrd Mat Sub Rec Scr Used RIF Installer . | . . . . . Robots Hacked . | . . . . . Non-combat . | . . . . . Combat . | . . . . . Robot Hacks Applied . | . . . . . Relay Couplers Released . | . . . . . Fabnet Peak Effective % . | . . . . . Robots Rewired 1 | . . . 1 . Allies Hacked . | . . . . . Hacks Repelled . | . . . . . Allies | -11 -10 -10 -9 -9 -------- Run | Yrd Mat Sub Rec Scr Total Allies 1 | . . . 1 . Largest Group 1 | . . . 1 1 Highest-Rated Group 8 | . . . 8 8 Highest-Rated Ally 8 | . . . 8 8 Total Orders . | . . . . . Ally Attacks 3 | . . . . 3 Total Damage 24 | . . . . 24 Kills . | . . . . . Allies Corrupted . | . . . . . Allies Melted . | . . . . . Intel | -11 -10 -10 -9 -9 ------- Run | Yrd Mat Sub Rec Scr Robot Analysis Total . | . . . . . Derelict Logs Recovered 4 | . . 1 . 3 Drone Launches . | . . . . . Drone Recoveries . | . . . . . Exploration | -11 -10 -10 -9 -9 ------------- Run | Yrd Mat Sub Rec Scr Turns Passed 8040 | 77 1434 945 1683 3901 Spaces Moved 3321 | 44 683 341 633 1620 Core 5 | 5 . . . . Treads 3316 | 39 683 341 633 1620 Legs . | . . . . . Wheels . | . . . . . Hover . | . . . . . Flight . | . . . . . Fastest Speed 50 | 50 160 240 240 240 Average Speed 228 | 147 189 240 240 240 Slowest Speed 320 | 160 240 240 320 240 Overloaded Moves . | . . . . . Propulsion Burnouts . | . . . . . Robots Hopped . | . . . . . Cave-ins Triggered . | . . . . . Exploration Rate (%) 62 | 3 91 25 97 94 Regions Visited 4 Branch Regions 3 Pre-discovered Areas 2 | . . . . 2 Known Exits Taken . | . . . . . Unknown Exits Taken 4 | 1 1 1 1 . Scrap Searched 11 | . . 4 . 7 Spaces Dug . | . . . . . Terrain Destroyed 27 | . 26 . 1 . Melee . | . . . . . Projectile 1 | . . . 1 . AOE 26 | . 26 . . . Terrain Rammed . | . . . . . Walls Destroyed . | . . . . . Machines Disabled . | . . . . . Actions | -11 -10 -10 -9 -9 --------- Run | Yrd Mat Sub Rec Scr Total 3558 | 53 751 391 730 1633 Wait 10 | . . . 6 4 Move 3317 | 43 682 340 632 1620 Hop . | . . . . . Pick Up 34 | 4 12 8 2 8 Fast Attach 11 | 6 2 . 3 . Attach 12 | . 1 8 3 . Detach . | . . . . . Swap 6 | . 6 . . . Drop 11 | . 9 . 2 . Fire 105 | . 37 35 32 1 Melee . | . . . . . Ram . | . . . . . Kick . | . . . . . Crush 2 | . 2 . . . Escape Stasis . | . . . . . Rewire 50 | . . . 50 . Trap . | . . . . . Miscellaneous . | . . . . . Route ------- -11/Scrapyard -10/Materials (discovered 5 exits: [*Mat x3] / [*Min] / [*Sub]) -10/Subcaves (discovered 2 exits: [*Mat] / *Rec) -9/Recycling (discovered 2 exits: [*Fac] / *Scr) -9/Scraptown (discovered 2 exits: [*Fac x2]) History --------- Turn | Location | Event 5 | -11/Scrapyard | Discovered new exit (range 15) 78 | -11/Scrapyard | Entered Materials 317 | -10/Materials | Build established: Mutant 456 | -10/Materials | Discovered new exit (range 8) 748 | -10/Materials | Discovered new exit (range 10) 1047 | -10/Materials | Discovered new exit (range 5) 1418 | -10/Materials | Discovered new exit (range 8) 1421 | -10/Materials | Discovered new exit (range 16) 1512 | -10/Materials | Entered Subcaves 1520 | -10/Subcaves | Learned 4 Materials zone layouts 2122 | -10/Subcaves | Discovered new exit (range 12) 2204 | -10/Subcaves | Lost 4 parts (2n1u1w) 2345 | -10/Subcaves | Discovered new exit (range 11) 2350 | -10/Subcaves | Core integrity fell below 50% 2457 | -10/Subcaves | Entered Recycling 2458 | -9/Recycling | Met a Zionite searching for Scraptown 2630 | -9/Recycling | Core integrity fell below 20% 2677 | -9/Recycling | Discovered new exit (range 5) 4070 | -9/Recycling | Scanned before Scraplab entrance 4111 | -9/Recycling | Entered Scraplab 4135 | -9/Recycling | Discovered new exit (range 2) 4140 | -9/Recycling | Entered Scraptown 4140 | -9/Scraptown | Accompanied by 1 ally 4152 | -9/Scraptown | Heard Great Nut preacher, LISTEN AND RECITE! 4629 | -9/Scraptown | Discovered new exit (range 5) 4773 | -9/Scraptown | Scanned Subdweller tech in exchange for log data 4778 | -9/Scraptown | Learned 8 Factory zone layouts 4780 | -9/Scraptown | Learned 12 Factory zone layouts 4783 | -9/Scraptown | Learned Factory security intel 4996 | -9/Scraptown | Visited Cave Peace 5085 | -9/Scraptown | Visited Assassins FH 5313 | -9/Scraptown | Visited Comm Corps 5460 | -9/Scraptown | Visited CPS Storage 5486 | -9/Scraptown | Visited Awakened 5575 | -9/Scraptown | Visited UFD Registry 6021 | -9/Scraptown | Registered with UFD as "Protonlauncher" 6050 | -9/Scraptown | Visited Cyclists 6083 | -9/Scraptown | Entered Cyclist Reading Room 6093 | -9/Scraptown | Learned location of Exiles (-9) 6093 | -9/Scraptown | Learned location of Zion (-7) 6146 | -9/Scraptown | Visited Symbiants 6383 | -9/Scraptown | Visited Cartography Club 6477 | -9/Scraptown | Visited Junk Repository 6596 | -9/Scraptown | Visited Abandonware Association 6639 | -9/Scraptown | Learned abandonware demo "SHUTEYE.EXE" 6639 | -9/Scraptown | Learned abandonware demo "ERRANTS.EXE" 6898 | -9/Scraptown | Discovered new exit (range 5) 6987 | -9/Scraptown | Visited DA-N13 Charitable Foundation 7006 | -9/Scraptown | Found DCF Scrap (30 items) 7062 | -9/Scraptown | Visited Supply Room 7108 | -9/Scraptown | Visited Supply Room 7742 | -9/Scraptown | Visited Curators Association 7802 | -9/Scraptown | Visited Scrapoid Pod Storage 7852 | -9/Scraptown | Visited Chapter 10 8032 | -9/Scraptown | Attacked by Scraptown defenders 8040 | -9/Scraptown | Found PL-3XN's Ring of Power 8041 | -9/Scraptown | Destroyed by Autobeam Turret with Autobeam Last Messages --------------- Derelict Autonomy. Internalizing that and completing three cycles of our training sessions is required for full membership, after which you can opt to help further our research efforts... Or be rebuilt and inserted into the system, at which point I can issue you an ID Mask for emergency situations. NY-B9T(c): I'm afraid Tooljoint will require some extra recovery time. 07946_ TY-ING(c): "Come one, come all! See for yourself a fine selection of the many wondrous pieces in our collection!" D1-FSZ(h): One day we're getting off this rock. TY-ING(c): We haven't figured out what that high-tech gadget is yet, but it appears very advanced. Maybe Sigix tech? Rangers recently caught a Hauler transporting it through 0b10 and toted it back here for analysis, but Scientists claim it's a piece of something larger and of little value on its own. 08032_ Enclosure breached. 08032_ ANNOUNCEMENT: Intruder alert! Defend Scraptown! 08033_ Autobeam Turret pops up from the ground. 08038_ Mercenary 2a destroyed. 08040_ Acquired PL-3XN's Ring of Power. Map ----- +----------------------------------------------------+ | # " " ######### #"" "## " "#????????? | | "" /#????????? | | "" "## ""/#????????? | | # " " ######### #"" "## ""??????????? | | # "" "" ""#??????###"" "##""[[[/?????????? | | # "" "" ##????????#"" "########?????????? | | # ""#????????#"" "#??#####?????????? | | # ##????????#"" "#?? """"?????????? | | ###### ################"" "#?" " "" ????????? | | """""""""""""""""""""""""" "##" " "" "#??????? | | """""""""""""""""""""""""" " "#??????? | | "##" """"#??????? | | "#?" "#??????? | | "#?? " "" "#??????? | | ##? " "" "#??????? | | c #??"""""????????? | | """""""""" """"""""""" """""" ##??#####????????? | | ########## ########### ###### #????????????????? | | #???#" "#" "# #????????????????? | | ###???#" "##"" ""## #????????????????? | | #????#" "##!" "$## #????????????????? | | #????#" ! "##"" c ""## #????????????????? | | #????#""""""" #" t "# #????????????????? | | #????###########"" ""## ############?????? | | #??????????????#&" =% " ## #?????? | | #??????????????#"" @"## ##?????? | | ##?????????????#" """ "# #?????? | | """#????????????#### "!" #### #?????? | | ####???????????????#"###"#??# #?????? | | ???????????????????##??###??# ############?????? | | ############################# #####????????????? | | """##"""##"""##"""##"""##"|"# """"#????????????? | | ""##|""##" "##"""##"" ##" # "" "#????????????? | | "#????????????? | | " "#????????????? | | *[! """"#????????????? | | """##"""##""|##" "##!!%##""|## ######????????????? | | """##"""##"""##"""##"""##"""####?????????????????? | | #############################????????????????????? | | ?????????????????????????????????????????????????? | | ?????????????????????????????????????????????????? | | ?????????????????????????????????????????????????? | | ?????????????????????????????????????????????????? | | ?????????????????????????????????????????????????? | | ?????????????????????????????????????????????????? | | ?????????????????????????????????????????????????? | | ?????????????????????????????????????????????????? | | ?????????????????????????????????????????????????? | | ?????????????????????????????????????????????????? | | ?????????????????????????????????????????????????? | +----------------------------------------------------+ Best States ------------- Heat Dissipation 35 Energy Generation 15 Energy Capacity 250 Matter Stores 300 Matter Capacity 300 Sight Range 21 Terrain Scan Density 10 Armor Coverage 150 Core Shielding 20 Evasion (%) 40 Recoil Reduction 2 Item Schematics ----------------- None Robot Schematics ------------------ None Fabricated ------------ Nothing Alien Tech Used ----------------- None Achievements -------------- None Challenges ------------ None Game ------ Seed BottomlessSegregatorShifter Manual? 0 Play Time 00:38:58 Cumulative 84.2 hours Start 2024.09.22 @ 13:01:13 End 2024.09.22 @ 13:39:25 Sessions 1 Manual Loads 0 Difficulty Rogue Special Mode None Game No. 96 Rogue 92 Adventurer 0 Explorer 4 Win Type - Total 5 Types 3/0/0/2/0/0/0/0/0 Lore% 38 Gallery% 60 Achievement% 54 Wizard Run 0 Options --------- Layout 0 ASCII 0 Keyboard 0 Movement Numpad Keybinds 0 Fullscreen 2 Font 18/SmallcapsGlow Map View 76x50 Zoom Use 0% Tactical HUD 1 Map Filters NONE Filters NONE Steam 1 RUN: 59958b34-98ec-4f8f-91b7-7c9789bce11c